bitfinex-derivatives/quotes_BTCF0:USTF0_20240929
["timestamp","ask_amount","ask_price","bid_price","bid_amount"]
[1727623450625,0.07603,65747.0,65746.0,0.08]
[1727623450831,0.16603,65747.0,65746.0,0.156031]
[1727623451029,0.16603,65747.0,65746.0,0.08]
[1727623451221,0.16603,65747.0,65746.0,0.156031]
[1727623452030,0.16703,65747.0,65746.0,0.156031]
[1727623452630,0.16803,65747.0,65746.0,0.156031]
[1727623455035,0.16803,65747.0,65746.0,0.08]
[1727623455328,0.076032,65745.0,65744.0,0.09741725]
[1727623455528,0.166032,65745.0,65744.0,0.076033]
[1727623458039,0.166032,65745.0,65744.0,0.078033]
[1727623460327,0.246032,65745.0,65744.0,0.04756909]
[1727623460636,0.246032,65745.0,65744.0,0.002]
[1727623463541,0.166032,65745.0,65744.0,0.002]
[1727623468649,0.246032,65745.0,65744.0,0.002]
[1727623471147,0.166032,65745.0,65744.0,0.002]
[1727623485247,0.2242995,65745.0,65744.0,0.002]
[1727623488660,0.2242995,65745.0,65744.0,0.078033]
[1727623492264,0.166032,65745.0,65744.0,0.078033]
[1727623495273,0.09,65745.0,65744.0,0.178033]
[1727623495450,0.09,65745.0,65744.0,0.22360209]
[1727623495761,0.09,65745.0,65744.0,0.22120209]
[1727623496063,0.09,65745.0,65744.0,0.224233]
[1727623496373,0.09,65745.0,65744.0,0.26984791]
[1727623499162,0.166032,65745.0,65744.0,0.224233]
[1727623502169,0.166032,65745.0,65744.0,0.324233]
[1727623504362,0.09,65745.0,65744.0,0.324233]
[1727623509076,0.09,65745.0,65744.0,0.36983588]
[1727623509281,0.125319,65757.0,65754.0,0.076021]
[1727623509577,0.11,65755.0,65754.0,0.256021]
[1727623509784,0.11,65755.0,65754.0,0.156021]
[1727623509981,0.11,65755.0,65754.0,0.20161483]
[1727623510279,0.11,65755.0,65754.0,0.246021]
[1727623510576,0.118,65755.0,65754.0,0.2915477]
[1727623510965,0.118,65755.0,65754.0,0.246021]
[1727623511272,0.019,65755.0,65754.0,0.656021]
[1727623511473,0.019,65755.0,65754.0,0.79152653]
[1727623511474,0.011,65755.0,65754.0,0.79152653]
[1727623511777,0.013,65755.0,65754.0,0.79152653]
[1727623512373,0.013,65755.0,65754.0,0.746021]
[1727623512783,0.013,65755.0,65754.0,0.887321]
[1727623512975,0.005,65755.0,65754.0,0.797321]
[1727623513178,0.007,65755.0,65754.0,0.797321]
[1727623513681,0.007,65755.0,65754.0,0.94282653]
[1727623514082,0.017,65755.0,65754.0,0.94282653]
[1727623514282,0.017,65755.0,65754.0,0.897321]
[1727623514678,0.017,65755.0,65754.0,0.91950489]
[1727623516181,0.017,65755.0,65754.0,1.28030489]
[1727623516495,0.017,65755.0,65754.0,0.78030489]
[1727623516688,0.007,65755.0,65754.0,0.78030489]
[1727623516887,0.007,65755.0,65754.0,0.8040753]
[1727623517187,0.017,65755.0,65754.0,0.8040753]
[1727623517490,0.017,65755.0,65754.0,0.4432753]
[1727623517785,0.017,65755.0,65754.0,0.8040753]
[1727623519882,0.017,65755.0,65754.0,0.41950489]
[1727623520090,0.017,65755.0,65754.0,0.78030489]
[1727623520390,0.017,65755.0,65754.0,0.70030489]
[1727623520686,0.017,65755.0,65754.0,0.78030489]
[1727623520884,0.017,65755.0,65754.0,0.73160489]
[1727623523496,0.017,65755.0,65754.0,0.65160489]
[1727623523881,0.017,65755.0,65754.0,0.73160489]
[1727623525296,0.017,65755.0,65754.0,0.37080489]
[1727623525794,0.017,65755.0,65754.0,0.73160489]
[1727623527400,0.0035,65763.0,65754.0,0.65558389]
[1727623527695,0.046,65765.0,65764.0,0.07601]
[1727623527996,0.1,65765.0,65764.0,0.17601]
[1727623529196,0.1,65765.0,65764.0,0.07601]
[1727623529587,0.1,65765.0,65764.0,0.18601]
[1727623529989,0.112,65765.0,65764.0,0.18601]
[1727623530189,0.126,65765.0,65764.0,0.07601]
[1727623530494,0.126,65765.0,65764.0,0.18601]
[1727623532494,0.126,65765.0,65764.0,0.20743184]
[1727623534593,0.126,65765.0,65764.0,0.09743184]
[1727623535294,0.202009,65765.0,65764.0,0.17743184]
[1727623535491,0.202009,65765.0,65764.0,0.10142184]
[1727623536003,0.126,65765.0,65762.0,0.4408]
[1727623536306,0.076011,65763.0,65762.0,0.4408]
[1727623536500,0.076011,65763.0,65762.0,0.46240728]
[1727623536501,0.176011,65763.0,65762.0,0.46240728]
[1727623537100,0.176011,65763.0,65762.0,0.38240728]
[1727623537904,0.188011,65763.0,65762.0,0.38240728]
[1727623539097,0.188011,65763.0,65762.0,0.45841928]
[1727623539702,0.198011,65763.0,65762.0,0.45841928]
[1727623543910,0.198011,65763.0,65762.0,0.38240728]
[1727623546311,0.198011,65763.0,65762.0,0.45841928]
[1727623546528,0.198011,65763.0,65762.0,0.53841928]
[1727623548814,0.198011,65763.0,65762.0,0.46240728]
[1727623551513,0.198011,65763.0,65762.0,0.38240728]
[1727623551910,0.278011,65763.0,65762.0,0.3608]
[1727623552218,0.278011,65763.0,65756.0,0.0035]
[1727623552219,0.076017,65758.0,65756.0,0.0035]
[1727623552512,0.076017,65758.0,65753.0,0.08]
[1727623552513,0.176017,65758.0,65757.0,0.01]
[1727623553013,0.176017,65758.0,65757.0,0.09]
[1727623553205,0.181017,65758.0,65757.0,0.091]
[1727623553411,0.181017,65758.0,65757.0,0.11309868]
[1727623553712,0.188017,65758.0,65757.0,0.11309868]
[1727623557014,0.188017,65758.0,65757.0,0.03309868]
[1727623557215,0.188017,65758.0,65757.0,0.10309868]
[1727623560820,0.188017,65758.0,65757.0,0.17911668]
[1727623562118,0.188017,65758.0,65757.0,0.28911668]
[1727623565125,0.188017,65758.0,65757.0,0.21309868]
[1727623566329,0.188017,65758.0,65757.0,0.13309868]
[1727623567930,0.188017,65758.0,65757.0,0.63309868]
[1727623574229,0.268017,65758.0,65757.0,0.13309868]
[1727623574428,0.268017,65758.0,65757.0,0.111]
[1727623575924,0.32675459,65758.0,65757.0,0.111]
[1727623579137,0.32675459,65758.0,65757.0,0.001]
[1727623579330,0.3267027,65758.0,65757.0,0.001]
[1727623580241,0.6875027,65758.0,65757.0,0.001]
[1727623580443,0.75541361,65758.0,65757.0,0.001]
[1727623580739,0.80051361,65758.0,65757.0,0.001]
[1727623581336,0.80049242,65758.0,65757.0,0.001]
[1727623582135,0.80049242,65758.0,65753.0,0.00113146]
[1727623582338,0.156021,65754.0,65753.0,0.00113146]
[1727623582536,0.256021,65754.0,65753.0,0.00113146]
[1727623583742,0.259021,65754.0,65753.0,0.00113146]
[1727623585536,0.619821,65754.0,65753.0,0.00113146]
[1727623585942,0.620821,65754.0,65753.0,0.00113146]
[1727623586846,0.28145483,65754.0,65753.0,0.00113146]
[1727623587147,0.64225483,65754.0,65753.0,0.00113146]
[1727623587644,0.620821,65754.0,65753.0,0.00113146]
[1727623588739,0.45628,65753.0,65741.0,5.3e-07]
[1727623588942,0.45628,65753.0,65736.0,0.00030175]
[1727623588943,0.076037,65741.0,65736.0,0.00030175]
[1727623589240,0.076041,65737.0,65736.0,0.00030175]
[1727623589445,0.186041,65737.0,65736.0,0.00030175]
[1727623590038,0.182041,65737.0,65736.0,0.00030175]
[1727623590741,0.184041,65737.0,65736.0,0.00430175]
[1727623594152,0.076055,65725.0,65724.0,0.02183012]
[1727623594347,0.136055,65725.0,65724.0,0.08]
[1727623596153,0.138055,65725.0,65724.0,0.08]
[1727623596550,0.138055,65725.0,65722.0,0.3831167]
[1727623596551,0.076057,65723.0,65722.0,0.3608]
[1727623596748,0.186057,65723.0,65722.0,0.4408]
[1727623597654,0.187057,65723.0,65722.0,0.3608]
[1727623597848,0.187057,65723.0,65722.0,0.4408]
[1727623598545,0.111,65723.0,65722.0,0.516858]
[1727623598950,0.111,65723.0,65722.0,0.626858]
[1727623599157,0.112,65723.0,65722.0,0.626858]
[1727623600057,0.111,65723.0,65722.0,0.626858]
[1727623600354,0.111,65723.0,65706.0,0.6899]
[1727623600355,0.076064,65717.0,65706.0,0.6899]
[1727623600560,0.136064,65717.0,65716.0,0.44110175]
[1727623600747,0.136064,65717.0,65716.0,0.46285009]
[1727623602353,0.137064,65717.0,65716.0,0.46285009]
[1727623602656,0.138064,65717.0,65716.0,0.46285009]
[1727623603050,0.138064,65717.0,65716.0,0.38285009]
[1727623603254,0.138064,65717.0,65716.0,0.46285009]
[1727623605154,0.138064,65717.0,65716.0,0.38285009]
[1727623605356,0.137064,65717.0,65716.0,0.46285009]
[1727623605556,0.136064,65717.0,65716.0,0.46285009]
[1727623605752,0.137064,65717.0,65716.0,0.46285009]
[1727623606654,0.137064,65717.0,65716.0,0.10205009]
[1727623607162,0.137064,65717.0,65716.0,0.17811509]
[1727623610160,0.137064,65717.0,65716.0,0.09811509]
[1727623610363,0.137064,65717.0,65716.0,0.17811509]
[1727623611660,0.137064,65717.0,65716.0,0.09811509]
[1727623611854,0.137064,65717.0,65716.0,0.17811509]
[1727623615556,0.137064,65717.0,65716.0,0.09811509]
[1727623615766,0.137064,65717.0,65716.0,0.17811509]
[1727623620467,0.137064,65717.0,65716.0,0.02205009]
[1727623620864,0.137064,65717.0,65708.0,0.0035]
[1727623620865,0.076074,65709.0,65708.0,0.0035]
[1727623621064,0.076077,65706.0,65705.0,0.08]
[1727623621370,0.176077,65706.0,65705.0,0.10241089]
[1727623621588,0.176077,65706.0,65705.0,0.02241089]
[1727623621771,0.176077,65706.0,65705.0,0.08]
[1727623623060,0.177077,65706.0,65705.0,0.08]
[1727623623663,0.177077,65706.0,65705.0,0.156078]
[1727623623858,0.076078,65705.0,65704.0,0.38231647]
[1727623624168,0.176078,65705.0,65704.0,0.38231647]
[1727623624372,0.176078,65705.0,65704.0,0.45839547]
[1727623625469,0.177078,65705.0,65704.0,0.45839547]
[1727623625865,0.178078,65705.0,65704.0,0.09759547]
[1727623632078,0.258078,65705.0,65704.0,0.09759547]
[1727623633571,0.258078,65705.0,65704.0,0.02151647]
[1727623633775,0.182,65705.0,65703.0,0.07608]
[1727623633969,0.076079,65704.0,65703.0,0.07608]
[1727623634164,0.176079,65704.0,65703.0,0.07608]
[1727623635671,0.101,65704.0,65703.0,0.07608]
[1727623635865,0.101,65704.0,65703.0,0.15608]
[1727623636563,0.102,65704.0,65703.0,0.15608]
[1727623638973,0.102,65704.0,65703.0,0.07608]
[1727623645576,0.182,65704.0,65703.0,0.07608]
[1727623646578,0.182,65704.0,65701.0,0.38314868]
[1727623646773,0.25808,65704.0,65703.0,0.07608]
[1727623646981,0.25808,65704.0,65701.0,0.38314868]
[1727623647178,0.182,65704.0,65701.0,0.38314868]
[1727623647380,0.25808,65704.0,65701.0,0.38314868]
[1727623647679,0.076082,65702.0,65701.0,0.38314868]
[1727623647866,0.176082,65702.0,65701.0,0.38314868]
[1727623648978,0.712682,65702.0,65700.0,0.06083207]
[1727623649181,0.712682,65702.0,65693.0,0.3608]
[1727623649182,0.076094,65692.0,65687.0,0.076099]
[1727623649367,0.08,65688.0,65687.0,0.09814072]
[1727623649573,0.18,65688.0,65687.0,0.09814072]
[1727623649775,0.18,65688.0,65687.0,0.02204172]
[1727623649969,0.256098,65688.0,65685.0,0.076101]
[1727623650172,0.08,65686.0,65685.0,0.076101]
[1727623650371,0.11,65686.0,65685.0,0.076101]
[1727623652072,0.111,65686.0,65685.0,0.076101]
[1727623652284,0.1871,65686.0,65685.0,0.076101]
[1727623652578,0.1881,65686.0,65685.0,0.076101]
[1727623653872,0.076101,65685.0,65684.0,0.38284618]
[1727623654074,0.146101,65685.0,65684.0,0.38284618]
[1727623655382,0.147101,65685.0,65684.0,0.02204618]
[1727623655682,0.076102,65684.0,65682.0,0.076104]
[1727623655883,0.166102,65684.0,65682.0,0.076104]
[1727623656189,0.166102,65684.0,65683.0,0.02470452]
[1727623656479,0.166102,65684.0,65683.0,0.0022837]
[1727623656783,0.167102,65684.0,65683.0,0.0022837]
[1727623657486,0.167102,65684.0,65683.0,0.02433168]
[1727623657783,0.167102,65684.0,65683.0,0.0022837]
[1727623658085,0.076104,65683.0,65680.0,0.076107]
[1727623658286,0.08,65682.0,65677.0,0.4086]
[1727623658481,0.12,65682.0,65681.0,0.076106]
[1727623660373,0.121,65682.0,65681.0,0.076106]
[1727623660573,0.122,65682.0,65681.0,0.076106]
[1727623660884,0.122,65682.0,65677.0,0.43635862]
[1727623660885,0.076108,65679.0,65677.0,0.38855862]
[1727623661084,0.08,65678.0,65677.0,0.38855862]
[1727623661270,0.18,65678.0,65677.0,0.38855862]
[1727623661477,0.256109,65678.0,65677.0,0.38895862]
[1727623661774,0.256109,65678.0,65677.0,0.02815862]
[1727623661974,0.256109,65678.0,65677.0,0.0004]
[1727623662983,0.257109,65678.0,65677.0,0.0004]
[1727623663283,0.181,65678.0,65671.0,0.3608]
[1727623663474,0.08,65672.0,65671.0,0.38843597]
[1727623663670,0.256116,65672.0,65671.0,0.38843597]
[1727623664374,0.256116,65672.0,65671.0,0.46455397]
[1727623664776,0.257116,65672.0,65671.0,0.46455397]
[1727623665076,0.258116,65672.0,65671.0,0.46455397]
[1727623666175,0.258116,65672.0,65671.0,0.10375397]
[1727623666176,0.618916,65672.0,65671.0,0.10375397]
[1727623666384,0.618916,65672.0,65671.0,0.02763597]
[1727623666590,0.076119,65670.0,65666.0,0.00228376]
[1727623666779,0.08,65668.0,65667.0,0.076122]
[1727623666982,0.15,65668.0,65667.0,0.076122]
[1727623667683,0.076122,65667.0,65666.0,0.00228376]
[1727623667989,0.076126,65664.0,65663.0,0.38808343]
[1727623668176,0.076131,65660.0,65656.0,0.00030175]
[1727623668491,0.076131,65660.0,65656.0,0.07643675]
[1727623668492,0.08,65657.0,65656.0,0.07643675]
[1727623668681,0.13,65657.0,65656.0,0.07643675]
[1727623668880,0.13,65657.0,65656.0,0.1040597]
[1727623669089,0.206134,65657.0,65656.0,0.1040597]
[1727623669689,0.17,65657.0,65656.0,0.1040597]
[1727623670480,0.121,65657.0,65656.0,0.1040597]
[1727623671185,0.001,65657.0,65656.0,0.1040597]
[1727623671391,0.012,65657.0,65656.0,0.1040597]
[1727623675888,0.011,65657.0,65656.0,0.1040597]
[1727623676086,0.012,65657.0,65656.0,0.1040597]
[1727623676491,0.011,65657.0,65656.0,0.1040597]
[1727623676696,0.012,65657.0,65656.0,0.1040597]
[1727623677196,0.011,65657.0,65656.0,0.1040597]
[1727623677391,0.012,65657.0,65656.0,0.1040597]
[1727623677695,0.208134,65657.0,65656.0,0.00030175]
[1727623679486,0.567934,65657.0,65656.0,0.00030175]
[1727623679686,0.568934,65657.0,65656.0,0.00030175]
[1727623680803,0.076141,65651.0,65650.0,0.02763968]
[1727623681102,0.076144,65648.0,65647.0,0.00228495]
[1727623681401,0.176144,65648.0,65647.0,0.50228495]
[1727623682686,0.1,65648.0,65647.0,0.57842995]
[1727623682887,0.1,65648.0,65647.0,0.60623147]
[1727623683095,0.001,65648.0,65647.0,0.60623147]
[1727623683398,0.021,65648.0,65647.0,0.60623147]
[1727623683699,0.022,65648.0,65647.0,0.60623147]
[1727623683895,0.098144,65648.0,65647.0,0.53008647]
[1727623684096,0.098144,65648.0,65647.0,0.03008647]
[1727623684294,0.098144,65648.0,65647.0,0.00228495]
[1727623689502,0.178144,65648.0,65647.0,0.00228495]
[1727623692097,0.102,65648.0,65643.0,0.5]
[1727623692304,0.08,65644.0,65643.0,0.57615]
[1727623692499,0.196149,65644.0,65643.0,0.57615]
[1727623692999,0.12,65644.0,65643.0,0.57615]
[1727623693202,0.08,65647.0,65646.0,0.076147]
[1727623693503,0.1,65647.0,65646.0,0.076547]
[1727623694300,0.1,65647.0,65646.0,0.576547]
[1727623694804,0.176145,65647.0,65646.0,0.576547]
[1727623695205,0.1,65647.0,65646.0,0.576547]
[1727623695504,0.1,65647.0,65646.0,0.076547]
[1727623696498,0.101,65647.0,65646.0,0.076547]
[1727623696699,0.102,65647.0,65646.0,0.076547]
[1727623700709,0.102,65647.0,65646.0,0.176547]
[1727623701897,0.102,65647.0,65646.0,0.25229613]
[1727623701898,0.002,65647.0,65646.0,0.25229613]
[1727623702099,0.0035,65650.0,65649.0,0.076143]
[1727623702309,0.0035,65654.0,65653.0,0.076138]
[1727623702611,0.0035,65659.0,65658.0,0.076133]
[1727623702812,0.0035,65659.0,65658.0,0.0004]
[1727623702813,0.1,65659.0,65658.0,0.0004]
[1727623703108,0.1,65659.0,65658.0,0.076532]
[1727623703109,0.22,65659.0,65658.0,0.076532]
[1727623704210,0.101,65659.0,65658.0,0.076532]
[1727623706316,0.0035,65667.0,65658.0,0.32391057]
[1727623706506,0.0935,65667.0,65666.0,0.076523]
[1727623706706,0.09,65667.0,65666.0,0.076523]
[1727623707717,0.091,65667.0,65666.0,0.076523]
[1727623709315,0.096,65667.0,65666.0,0.076523]
[1727623709516,0.096,65667.0,65666.0,0.296523]
[1727623709811,0.001,65667.0,65666.0,0.076523]
[1727623710009,0.011,65667.0,65666.0,0.076523]
[1727623710217,0.001,65667.0,65666.0,0.121623]
[1727623710515,0.001,65667.0,65666.0,0.21226085]
[1727623710717,0.001,65667.0,65666.0,0.166723]
[1727623711215,0.001,65667.0,65666.0,0.21226042]
[1727623711411,0.001,65667.0,65666.0,0.30226042]
[1727623711412,0.011,65667.0,65666.0,0.30226042]
[1727623711601,0.131,65667.0,65666.0,0.02780464]
[1727623711804,0.207122,65667.0,65666.0,0.02780464]
[1727623712406,0.207122,65667.0,65666.0,0.0004]
[1727623721620,0.167122,65667.0,65666.0,0.0004]
[1727623722321,0.167122,65667.0,65666.0,0.076523]
[1727623727529,0.167122,65667.0,65666.0,0.0004]
[1727623732624,0.07613,65660.0,65659.0,0.3608]
[1727623732823,0.07613,65660.0,65659.0,0.46425929]
[1727623732824,0.18613,65660.0,65659.0,0.46425929]
[1727623733320,0.18613,65660.0,65659.0,0.436931]
[1727623734024,0.18713,65660.0,65659.0,0.436931]
[1727623734228,0.18813,65660.0,65659.0,0.436931]
[1727623736029,0.18813,65660.0,65659.0,0.3608]
[1727623736532,0.18813,65660.0,65659.0,0.436931]
[1727623737827,0.112,65660.0,65659.0,0.436931]
[1727623738021,0.112,65660.0,65659.0,0.486531]
[1727623739131,0.112,65660.0,65659.0,0.596531]
[1727623740023,0.112,65660.0,65659.0,0.486531]
[1727623741128,0.112,65660.0,65659.0,0.53218255]
[1727623741530,0.112,65660.0,65659.0,0.486531]
[1727623742829,0.0035,65667.0,65666.0,0.076123]
[1727623743132,0.02,65667.0,65666.0,0.076523]
[1727623744131,0.021,65667.0,65666.0,0.076523]
[1727623745235,0.0035,65674.0,65673.0,0.076115]
[1727623745533,0.09,65674.0,65673.0,0.156115]
[1727623745732,0.09,65674.0,65673.0,0.121769]
[1727623745935,0.08,65677.0,65672.0,0.1113921]
[1727623746129,0.12,65677.0,65676.0,0.076112]
[1727623746330,0.04,65677.0,65676.0,0.12172132]
[1727623746734,0.0835,65681.0,65680.0,0.076107]
[1727623746933,0.13,65681.0,65680.0,0.076107]
[1727623747443,0.206106,65681.0,65680.0,0.076107]
[1727623747924,0.13,65681.0,65680.0,0.076107]
[1727623748129,0.13,65681.0,65675.0,0.076113]
[1727623748331,0.08,65676.0,65675.0,0.076113]
[1727623748531,0.19,65676.0,65675.0,0.076113]
[1727623749542,0.23,65676.0,65675.0,0.076113]
[1727623750239,0.233,65676.0,65675.0,0.076113]
[1727623751338,0.238,65676.0,65675.0,0.076113]
[1727623759340,0.118,65676.0,65675.0,0.076113]
[1727623760945,0.118,65676.0,65675.0,0.13171936]
[1727623761148,0.118,65676.0,65675.0,0.14547941]
[1727623761645,0.118,65676.0,65675.0,0.09991072]
[1727623762147,0.118,65676.0,65675.0,0.10991072]
[1727623764448,0.118,65676.0,65675.0,0.09991072]
[1727623765446,0.118,65676.0,65675.0,0.16068521]
[1727623766646,0.118,65676.0,65675.0,0.13688749]
[1727623767447,0.118,65676.0,65675.0,0.13688931]
[1727623768046,0.118,65676.0,65675.0,0.13688925]
[1727623768247,0.118,65676.0,65675.0,0.1368891]
[1727623768547,0.118,65676.0,65675.0,0.076113]
[1727623768742,0.118,65676.0,65675.0,0.13688991]
[1727623769152,0.118,65676.0,65675.0,0.13688952]
[1727623769446,0.118,65676.0,65675.0,0.076113]
[1727623769947,0.118,65676.0,65675.0,0.13689037]
[1727623770144,0.118,65676.0,65675.0,0.13689062]
[1727623770352,0.118,65676.0,65675.0,0.076113]
[1727623770644,0.118,65676.0,65675.0,0.13689019]
[1727623771454,0.118,65676.0,65675.0,0.076113]
[1727623771667,0.198,65676.0,65675.0,0.076113]
[1727623778346,0.198,65676.0,65675.0,0.13696206]
[1727623779452,0.198,65676.0,65675.0,0.076113]
[1727623781054,0.198,65676.0,65675.0,0.13696206]
[1727623782652,0.198,65676.0,65675.0,0.49776206]
[1727623783745,0.198,65676.0,65675.0,0.13696206]
[1727623784045,0.198,65676.0,65675.0,0.49776206]
[1727623785354,0.198,65676.0,65675.0,0.59929212]
[1727623787457,0.198,65676.0,65675.0,0.23849212]
[1727623787752,0.198,65676.0,65675.0,0.59929212]
[1727623788145,0.198,65676.0,65675.0,0.51302812]
[1727623788345,0.198,65676.0,65675.0,0.59931822]
[1727623789356,0.198,65676.0,65675.0,0.54700205]
[1727623789561,0.198,65676.0,65675.0,0.62314511]
[1727623790465,0.198,65676.0,65675.0,0.54702999]
[1727623791949,0.198,65676.0,65675.0,0.54706317]
[1727623792561,0.198,65676.0,65675.0,0.58514172]
[1727623793555,0.198,65676.0,65675.0,0.4987905]
[1727623796651,0.198,65676.0,65675.0,0.436913]
[1727623797663,0.198,65676.0,65675.0,0.49879057]
[1727623798061,0.198,65676.0,65675.0,0.13799057]
[1727623798359,0.198,65676.0,65675.0,0.49879057]
[1727623800667,0.198,65676.0,65675.0,0.5851794]
[1727623801557,0.198,65676.0,65675.0,0.52330183]
[1727623803167,0.198,65676.0,65675.0,0.58517966]
[1727623804866,0.198,65676.0,65675.0,0.58524675]
[1727623807865,0.198,65676.0,65675.0,0.22444675]
[1727623808072,0.274112,65676.0,65675.0,0.13799083]
[1727623808469,0.274112,65676.0,65675.0,0.19891344]
[1727623808667,0.198,65676.0,65675.0,0.19891344]
[1727623811472,0.198,65676.0,65675.0,0.13799083]
[1727623812958,0.198,65676.0,65675.0,0.19891344]
[1727623813164,0.118,65676.0,65675.0,0.19891344]
[1727623813367,0.198,65676.0,65675.0,0.13799083]
[1727623822469,0.198,65676.0,65675.0,0.076113]
[1727623824579,0.198,65676.0,65675.0,0.19888431]
[1727623825578,0.198,65676.0,65675.0,0.13700405]
[1727623826669,0.198,65676.0,65675.0,0.076113]
[1727623827182,0.198,65676.0,65675.0,0.19888457]
[1727623830087,0.198,65676.0,65675.0,0.13799352]
[1727623833177,0.198,65676.0,65675.0,0.0999132]
[1727623833385,0.198,65676.0,65675.0,0.076113]
[1727623833576,0.198,65676.0,65675.0,0.09991315]
[1727623833881,0.198,65676.0,65675.0,0.1379934]
[1727623843077,0.118,65676.0,65675.0,0.1379934]
[1727623843598,0.118,65676.0,65675.0,0.21413982]
[1727623844187,0.118,65676.0,65675.0,0.1379934]
[1727623844690,0.118,65676.0,65675.0,0.21413982]
[1727623845684,0.118,65676.0,65675.0,0.1379934]
[1727623848496,0.198,65676.0,65675.0,0.1379934]
[1727623853796,0.198,65676.0,65675.0,0.15225942]
[1727623854996,0.198,65676.0,65675.0,0.076113]
[1727623855492,0.198,65676.0,65675.0,0.09991311]
[1727623855693,0.198,65676.0,65675.0,0.21413971]
[1727623856098,0.198,65676.0,65675.0,0.13799329]
[1727623856591,0.198,65676.0,65675.0,0.21413971]
[1727623858797,0.198,65676.0,65675.0,0.13799329]
[1727623867611,0.198,65676.0,65675.0,0.076113]
[1727623868006,0.118,65676.0,65675.0,0.076113]
[1727623868312,0.118,65676.0,65675.0,0.2387843]
[1727623868701,0.118,65676.0,65675.0,0.16263788]
[1727623871510,0.118,65676.0,65675.0,0.22451788]
[1727623874727,0.0035,65691.0,65684.0,0.076102]
[1727623874914,0.0035,65692.0,65691.0,0.076094]
[1727623875113,0.0041,65699.0,65698.0,0.076086]
[1727623875114,0.0035,65699.0,65698.0,0.076086]
[1727623875416,0.02,65699.0,65698.0,0.49767313]
[1727623875814,0.02,65699.0,65698.0,0.436886]
[1727623877620,0.026,65699.0,65698.0,0.436886]
[1727623877803,0.106,65699.0,65698.0,0.436886]
[1727623878008,0.114,65699.0,65698.0,0.436886]
[1727623878609,0.114,65699.0,65698.0,0.498766]
[1727623879722,0.114,65699.0,65698.0,0.52589766]
[1727623881623,0.114,65699.0,65698.0,0.46401766]
[1727623882219,0.034,65699.0,65698.0,0.54401766]
[1727623882415,0.014,65699.0,65698.0,0.54401766]
[1727623882735,0.014,65699.0,65698.0,0.65401766]
[1727623883031,0.0035,65711.0,65710.0,0.076072]
[1727623883322,0.0035,65723.0,65710.0,0.8016]
[1727623883529,0.09,65723.0,65722.0,0.076058]
[1727623885130,0.107,65723.0,65722.0,0.077058]
[1727623889825,0.107,65723.0,65722.0,0.10438024]
[1727623892928,0.017,65723.0,65722.0,0.10438024]
[1727623893129,0.027,65723.0,65722.0,0.10438024]
[1727623893431,0.017,65723.0,65722.0,0.10438024]
[1727623893928,0.027,65723.0,65722.0,0.10438024]
[1727623896925,0.027,65723.0,65722.0,0.46518024]
[1727623898727,0.147,65723.0,65722.0,0.46518024]
[1727623899030,0.223057,65723.0,65722.0,0.38912224]
[1727623899231,0.223057,65723.0,65722.0,0.3618]
[1727623899232,0.269157,65723.0,65722.0,0.3618]
[1727623899927,0.076064,65717.0,65710.0,0.0035]
[1727623900122,0.076071,65712.0,65711.0,0.076071]
[1727623900328,0.186071,65712.0,65711.0,0.076071]
[1727623901721,0.186071,65712.0,65711.0,0.078071]
[1727623901922,0.186071,65712.0,65711.0,0.081071]
[1727623903229,0.186071,65712.0,65711.0,0.079071]
[1727623903623,0.186071,65712.0,65711.0,0.076071]
[1727623904439,0.076074,65709.0,65708.0,0.36308282]
[1727623904733,0.306074,65709.0,65708.0,0.00228282]
[1727623907132,0.187074,65709.0,65708.0,0.00228282]
[1727623907434,0.186074,65709.0,65708.0,0.07835782]
[1727623907627,0.191074,65709.0,65708.0,0.07935782]
[1727623908027,0.188074,65709.0,65708.0,0.07835782]
[1727623908237,0.193074,65709.0,65708.0,0.07935782]
[1727623908737,0.191074,65709.0,65708.0,0.08235782]
[1727623909038,0.551874,65709.0,65708.0,0.08235782]
[1727623910235,0.546874,65709.0,65708.0,0.07835782]
[1727623910431,0.186074,65709.0,65708.0,0.08335782]
[1727623910637,0.546874,65709.0,65708.0,0.08335782]
[1727623911034,0.548874,65709.0,65708.0,0.08135782]
[1727623911237,0.548874,65709.0,65708.0,0.07835782]
[1727623911440,0.549874,65709.0,65708.0,0.07835782]
[1727623913239,0.548874,65709.0,65708.0,0.07835782]
[1727623913435,0.188074,65709.0,65708.0,0.07835782]
[1727623913636,0.546874,65709.0,65708.0,0.07835782]
[1727623913833,0.548874,65709.0,65708.0,0.07835782]
[1727623914426,0.549874,65709.0,65708.0,0.07835782]
[1727623914935,0.189074,65709.0,65708.0,0.07835782]
[1727623915133,0.549874,65709.0,65708.0,0.07835782]
[1727623915941,0.549874,65709.0,65708.0,0.00228282]
[1727623917139,0.189074,65709.0,65708.0,0.00228282]
[1727623917547,0.549874,65709.0,65708.0,0.00228282]
[1727623917945,0.669874,65709.0,65708.0,0.00228282]
[1727623926150,0.309074,65709.0,65708.0,0.00228282]
[1727623926441,0.669874,65709.0,65708.0,0.00228282]
[1727623927648,0.629874,65709.0,65708.0,0.00228282]
[1727623928746,0.269074,65709.0,65708.0,0.00228282]
[1727623928942,0.629874,65709.0,65708.0,0.00228282]
[1727623931847,0.269074,65709.0,65708.0,0.00228282]
[1727623932054,0.629874,65709.0,65708.0,0.00228282]
[1727623933945,0.629874,65709.0,65708.0,0.04775218]
[1727623934959,0.076075,65708.0,65700.0,0.06412581]